bitfinex-derivatives/quotes_BTCF0:USTF0_20250406
["timestamp","ask_amount","ask_price","bid_price","bid_amount"]
[1743966579141,0.00087014,78940.0,78939.0,0.0012]
[1743966579444,0.00087014,78940.0,78935.0,0.12668009]
[1743966579747,0.3608,78936.0,78927.0,0.00969756]
[1743966580042,0.3608,78928.0,78916.0,0.3608]
[1743966580342,0.3806,78927.0,78909.0,0.3608]
[1743966580548,0.3806,78927.0,78922.0,0.00011147]
[1743966580756,0.3806,78927.0,78924.0,0.1266825]
[1743966581344,0.3608,78926.0,78924.0,0.1266825]
[1743966581749,0.3902,78925.0,78924.0,0.1266825]
[1743966582046,1.00588518,78925.0,78924.0,0.00112]
[1743966582248,1.00588518,78925.0,78924.0,0.13270256]
[1743966582542,0.1816132,78919.0,78880.0,0.35546274]
[1743966582746,0.3608,78900.0,78893.0,0.36192]
[1743966582936,0.3608,78909.0,78893.0,0.36192]
[1743966583137,0.3608,78900.0,78894.0,0.12670336]
[1743966583342,0.3608,78900.0,78894.0,0.12782336]
[1743966583544,9.244e-05,78899.0,78894.0,0.12782336]
[1743966584147,0.3608,78895.0,78894.0,0.12782336]
[1743966584636,0.61568518,78895.0,78893.0,0.00012194]
[1743966584943,0.25488518,78894.0,78893.0,0.00012194]
[1743966585147,0.25552518,78894.0,78893.0,0.00012194]
[1743966585443,0.00064,78894.0,78870.0,0.29485135]
[1743966585651,0.3608,78871.0,78870.0,0.00112]
[1743966585838,0.36148,78871.0,78862.0,0.1818]
[1743966586037,0.1943,78870.0,78862.0,0.18292]
[1743966586442,0.00019016,78874.0,78863.0,0.12690521]
[1743966586652,0.00019016,78874.0,78863.0,0.12802521]
[1743966586949,0.1943,78886.0,78868.0,0.3608]
[1743966587154,0.3608,78883.0,78876.0,0.35546274]
[1743966587341,0.00120001,78883.0,78882.0,0.3608]
[1743966587540,0.3608,78922.0,78882.0,0.36232]
[1743966587742,0.3608,78915.0,78903.0,0.3608]
[1743966588046,0.3608,78915.0,78903.0,0.36276]
[1743966588263,0.1801,78914.0,78904.0,0.12677083]
[1743966588544,0.00016273,78913.0,78904.0,0.06542372]
[1743966588752,0.1816132,78907.0,78904.0,0.06542372]
[1743966588952,0.1816132,78904.0,78901.0,0.00019016]
[1743966589247,0.1816132,78903.0,78901.0,0.00019016]
[1743966589452,0.00068,78903.0,78902.0,0.12672825]
[1743966589753,0.00068,78903.0,78902.0,0.12808825]
[1743966589958,0.00068,78903.0,78892.0,0.3186]
[1743966590146,0.00068,78903.0,78902.0,0.12673869]
[1743966590350,0.00068,78903.0,78902.0,0.12769869]
[1743966590646,0.00068,78903.0,78902.0,0.00096]
[1743966590849,0.0887,78912.0,78902.0,0.27673869]
[1743966591154,0.3608,78930.0,78909.0,0.3608]
[1743966591346,0.3608,78930.0,78919.0,0.3608]
[1743966591552,0.3608,78945.0,78929.0,0.3608]
[1743966591851,0.1869,78944.0,78929.0,0.32270327]
[1743966592149,0.1869,78944.0,78930.0,0.1911]
[1743966592454,0.3608,78933.0,78930.0,0.12762336]
[1743966592657,0.3693,78932.0,78930.0,0.12762336]
[1743966592956,0.3693,78932.0,78930.0,0.12670336]
[1743966594557,0.3693,78932.0,78930.0,0.06343625]
[1743966594954,0.3693,78932.0,78911.0,0.35447447]
[1743966595151,0.3608,78921.0,78911.0,0.35539447]
[1743966595453,0.3882,78920.0,78911.0,0.35539447]
[1743966595659,0.38912,78920.0,78912.0,0.12669293]
[1743966595857,0.3608,78913.0,78912.0,0.12761293]
[1743966596061,0.36152,78913.0,78912.0,0.12669293]
[1743966596355,0.61640518,78913.0,78887.0,0.3608]
[1743966596557,0.3608,78904.0,78903.0,0.00107273]
[1743966596758,0.36144,78904.0,78903.0,0.00015273]
[1743966596961,0.61632518,78904.0,78903.0,0.00015273]
[1743966597150,0.61632518,78904.0,78891.0,0.00063378]
[1743966597151,0.79803,78904.0,78891.0,0.00063378]
[1743966597351,0.3608,78895.0,78891.0,0.00063378]
[1743966597548,0.1902,78894.0,78891.0,0.00063378]
[1743966597749,0.19092,78894.0,78893.0,0.12673709]
[1743966597945,0.00072,78894.0,78893.0,0.12673709]
[1743966598148,0.00019002,78901.0,78893.0,0.15110521]
[1743966598351,0.001,78901.0,78900.0,0.3608]
[1743966598551,0.1902,78912.0,78900.0,0.36172]
[1743966598760,0.1902,78912.0,78907.0,0.3608]
[1743966598955,0.194,78937.0,78909.0,0.3608]
[1743966599162,0.19464,78937.0,78910.0,0.35546274]
[1743966599354,0.00011673,78927.0,78916.0,0.3608]
[1743966599555,0.00011673,78927.0,78916.0,0.36172]
[1743966599756,0.00011673,78927.0,78917.0,0.3608]
[1743966599957,0.00103673,78927.0,78917.0,0.36172]
[1743966600153,0.00103673,78927.0,78926.0,0.3608]
[1743966600354,0.00011673,78927.0,78926.0,0.00092]
[1743966600549,0.43661511,78927.0,78917.0,0.3608]
[1743966600762,0.1816132,78922.0,78917.0,0.00092]
[1743966600965,0.1816132,78922.0,78916.0,0.002]
[1743966601162,0.25488518,78921.0,78918.0,0.12670738]
[1743966601365,0.00011673,78927.0,78920.0,0.3608]
[1743966601575,0.00011673,78927.0,78920.0,0.36172]
[1743966601965,0.03167,78926.0,78920.0,0.36172]
[1743966602164,0.1816132,78923.0,78920.0,0.36172]
[1743966602466,0.25488518,78925.0,78921.0,0.12670497]
[1743966602653,0.03167,78926.0,78921.0,0.12762497]
[1743966603563,0.00019002,78931.0,78925.0,0.3608]
[1743966603771,0.00019002,78931.0,78926.0,0.12063289]
[1743966604068,0.21853032,78944.0,78930.0,0.3608]
[1743966604252,0.21853032,78944.0,78937.0,0.3608]
[1743966604453,0.21853032,78944.0,78938.0,0.1887]
[1743966604652,0.0004,78952.0,78943.0,0.3608]
[1743966604858,0.0004,78952.0,78951.0,0.3608]
[1743966605054,0.0004,78952.0,78951.0,0.36176]
[1743966605369,0.43689838,78952.0,78951.0,0.12763688]
[1743966605556,0.43689838,78952.0,78951.0,0.12667688]
[1743966605756,0.1912,78952.0,78951.0,0.12667688]
[1743966606066,0.1912,78952.0,78951.0,0.00092]
[1743966606466,0.00019002,78959.0,78951.0,0.55422]
[1743966606669,0.00019002,78959.0,78958.0,0.3608]
[1743966606868,0.00019002,78959.0,78958.0,0.29753289]
[1743966607169,0.00019002,78959.0,78958.0,0.36172]
[1743966607370,0.00033821,78959.0,78958.0,0.48837442]
[1743966607771,0.00233821,78959.0,78958.0,0.12757442]
[1743966608569,0.00233821,78959.0,78958.0,0.48837442]
[1743966609075,0.58883659,78959.0,78958.0,0.12757442]
[1743966609270,0.94963659,78959.0,78944.0,0.00019002]
[1743966609572,0.1816132,78936.0,78927.0,0.00063349]
[1743966609869,0.3608,78928.0,78918.0,0.29816638]
[1743966610072,0.5424132,78919.0,78908.0,0.3608]
[1743966610372,0.1816132,78915.0,78908.0,0.36144]
[1743966610674,0.00076,78915.0,78909.0,0.12669213]
[1743966610873,0.00076,78915.0,78909.0,0.12733213]
[1743966611170,0.03167,78916.0,78910.0,0.3801]
[1743966611466,0.03167,78916.0,78910.0,0.00076]
[1743966611673,0.43649838,78915.0,78910.0,0.00076]
[1743966611865,0.43733838,78915.0,78911.0,0.12672424]
[1743966612058,0.00084,78915.0,78911.0,0.12736424]
[1743966612260,0.00084,78915.0,78914.0,0.3608]
[1743966612465,0.00019002,78921.0,78914.0,0.36148]
[1743966612767,0.00103002,78921.0,78915.0,0.11763289]
[1743966612978,0.3608,78949.0,78923.0,0.002]
[1743966613160,0.3608,78949.0,78932.0,0.3608]
[1743966613161,0.0008,78935.0,78932.0,0.3608]
[1743966613364,0.3767,78948.0,78933.0,0.1867]
[1743966613671,0.3608,78940.0,78933.0,0.00064]
[1743966613875,0.1816132,78934.0,78923.0,0.002]
[1743966614176,0.1816132,78924.0,78923.0,0.003]
[1743966614375,0.00076,78924.0,78923.0,0.003]
[1743966614567,0.43725838,78924.0,78923.0,0.12967768]
[1743966614767,0.43725838,78924.0,78923.0,0.13039768]
[1743966615070,0.43725838,78924.0,78905.0,0.36093456]
[1743966615071,0.1816132,78916.0,78905.0,0.00013456]
[1743966615271,0.1816132,78908.0,78905.0,0.00013456]
[1743966615576,0.1802,78907.0,78906.0,0.12670497]
[1743966615772,0.3608,78921.0,78906.0,0.48750497]
[1743966615966,0.0213,78914.0,78910.0,0.35546274]
[1743966616172,0.00019002,78921.0,78913.0,0.3608]
[1743966616375,0.00019002,78921.0,78920.0,0.3608]
[1743966616670,0.3608,78936.0,78920.0,0.3608]
[1743966616874,0.1816132,78935.0,78920.0,0.3608]
[1743966617082,0.1816132,78925.0,78910.0,0.006]
[1743966617269,0.3608,78921.0,78910.0,0.012]
[1743966617466,0.3608,78921.0,78911.0,0.12670979]
[1743966617863,9.325e-05,78917.0,78911.0,0.12670979]
[1743966618266,0.5424132,78912.0,78911.0,0.12670979]
[1743966618468,0.1816132,78906.0,78887.0,0.3608]
[1743966618683,0.3608,78898.0,78887.0,0.3608]
[1743966618871,0.5424132,78898.0,78887.0,0.29816667]
[1743966619069,0.5424132,78898.0,78877.0,0.39419368]
[1743966619070,0.3608,78888.0,78877.0,0.3608]
[1743966619269,0.181,78887.0,78868.0,0.3872]
[1743966619469,0.1816132,78874.0,78873.0,0.00012037]
[1743966619872,0.79745217,78874.0,78873.0,0.00012037]
[1743966620073,0.00091379,78874.0,78873.0,0.36164037]
[1743966620282,0.00091379,78874.0,78873.0,0.48926566]
[1743966620586,0.00091379,78874.0,78873.0,0.48854566]
[1743966620769,0.00015379,78874.0,78873.0,0.49454566]
[1743966620969,0.25503897,78874.0,78873.0,0.49454566]
[1743966621181,0.25679897,78874.0,78873.0,0.49954566]
[1743966621379,0.25679897,78874.0,78873.0,0.13874566]
[1743966621576,0.43841217,78874.0,78873.0,0.13790566]
[1743966621773,0.58841217,78874.0,78855.0,0.36143407]
[1743966621988,0.1816132,78857.0,78855.0,0.00084]
[1743966622280,0.62229838,78856.0,78844.0,0.30016696]
[1743966622581,0.3608,78851.0,78844.0,0.30084696]
[1743966622779,0.1858,78850.0,78845.0,0.12688238]
[1743966622985,0.00076,78850.0,78849.0,0.3608]
[1743966623176,0.00019016,78855.0,78849.0,0.36144]
[1743966623673,0.1816132,78852.0,78850.0,0.1268271]
[1743966623877,0.62229838,78851.0,78850.0,0.1275871]
[1743966624082,0.62305838,78851.0,78850.0,0.1268271]
[1743966624275,0.62305838,78851.0,78845.0,9.709e-05]
[1743966624578,0.1816132,78846.0,78845.0,9.709e-05]
[1743966624779,0.1823732,78846.0,78845.0,9.709e-05]
[1743966624987,0.00076,78846.0,78839.0,0.3608]
[1743966625279,0.00076,78846.0,78845.0,0.12683032]
[1743966625478,0.1816,78861.0,78845.0,0.00068]
[1743966625677,0.1976,78861.0,78854.0,0.3608]
[1743966625883,0.00119016,78855.0,78854.0,0.36148]
[1743966626081,0.00119016,78855.0,78854.0,0.51162953]
[1743966626272,0.1976,78870.0,78854.0,0.51162953]
[1743966626479,0.19828,78870.0,78860.0,0.35546274]
[1743966626783,0.45316518,78870.0,78867.0,0.3608]
[1743966626987,0.80848518,78869.0,78867.0,0.00076]
[1743966627282,0.80848518,78869.0,78854.0,0.36094953]
[1743966627283,0.1816132,78868.0,78861.0,0.12679896]
[1743966627482,0.1816132,78858.0,78854.0,0.00082953]
[1743966627684,0.1816132,78856.0,78855.0,0.12679896]
[1743966627880,0.00064,78856.0,78855.0,0.12679896]
[1743966628178,0.00064,78856.0,78855.0,0.06421185]
[1743966628385,0.00064,78856.0,78855.0,0.44781185]
[1743966628578,0.00064,78856.0,78855.0,0.25141185]
[1743966628980,0.00064,78856.0,78855.0,0.44781185]
[1743966629180,0.3608,78886.0,78855.0,0.59781185]
[1743966629382,0.3608,78886.0,78864.0,0.3608]
[1743966629383,0.005,78869.0,78864.0,0.3608]
[1743966629576,0.1928,78895.0,78867.0,0.3608]
[1743966629778,0.1816132,78903.0,78894.0,0.3608]
[1743966629975,0.3706,78902.0,78895.0,0.379]
[1743966630184,0.1844,78912.0,78901.0,0.3608]
[1743966630384,0.1862,78911.0,78902.0,0.379]
[1743966630581,0.00015459,78906.0,78902.0,0.37988]
[1743966630776,0.00015459,78906.0,78903.0,0.0001171]
[1743966630977,0.25488518,78905.0,78902.0,0.06450323]
[1743966631283,0.5532132,78904.0,78899.0,0.00019016]
[1743966631479,0.62648518,78904.0,78902.0,0.12673628]
[1743966631678,0.00015459,78906.0,78899.0,0.00019016]
[1743966631877,0.3608,78932.0,78900.0,0.3608]
[1743966632083,0.3608,78947.0,78920.0,0.35546274]
[1743966632287,0.3608,78947.0,78915.0,0.3608]
[1743966632288,0.3716,78946.0,78930.0,0.35546274]
[1743966632481,0.3716,78946.0,78937.0,0.3608]
[1743966632686,0.3716,78946.0,78938.0,0.1893]
[1743966632885,0.1872,78946.0,78939.0,0.00016126]
[1743966633290,9.856e-05,78947.0,78940.0,0.12667608]
[1743966633488,0.00019003,78950.0,78946.0,0.3608]
[1743966633688,0.00019003,78950.0,78947.0,0.3778]
[1743966633889,0.3608,78967.0,78947.0,0.3778]
[1743966634085,0.3863,78975.0,78965.0,0.29753289]
[1743966634281,0.3863,78975.0,78956.0,0.3608]
[1743966634282,0.3608,78967.0,78958.0,0.1907]
[1743966634489,0.1816132,78957.0,78956.0,0.3608]
[1743966634988,0.43649838,78957.0,78956.0,0.36144]
[1743966635191,0.79801838,78957.0,78956.0,0.12729201]
[1743966635393,0.79801838,78957.0,78956.0,0.12665201]
[1743966635988,0.00072,78957.0,78955.0,0.12665201]
[1743966636185,0.00013573,78963.0,78955.0,0.51799201]
[1743966636391,0.00013573,78963.0,78955.0,0.39134]
[1743966636587,0.44402091,78963.0,78959.0,0.3608]
[1743966636889,0.00077573,78963.0,78960.0,0.3907]
[1743966637090,0.3608,78985.0,78962.0,0.29753289]
[1743966637393,0.1803,78984.0,78975.0,0.35546274]
[1743966637693,0.00108,78984.0,78976.0,0.3985]
[1743966637877,0.182,78994.0,78976.0,0.52618479]
[1743966637878,0.3623,78994.0,78976.0,0.52618479]
[1743966638083,0.0001478,78987.0,78980.0,0.3608]
[1743966638393,0.001,78985.0,78981.0,9.698e-05]
[1743966638693,0.001,78985.0,78981.0,0.16180534]
[1743966638888,0.1803,78994.0,78981.0,0.16180534]
[1743966638889,0.21802233,79027.0,78981.0,0.51355131]
[1743966639091,0.36184001,78995.0,78987.0,0.3608]
[1743966639284,0.36184001,78995.0,78987.0,0.36184]
[1743966639493,0.36184001,78995.0,78992.0,0.002]
[1743966639791,0.1803,79006.0,78994.0,0.3608]
[1743966639994,0.00136,79000.0,78995.0,0.1985]
[1743966640195,0.00011865,79008.0,78996.0,0.66790898]
[1743966640492,0.14722058,79015.0,79006.0,0.3608]
[1743966640788,0.1946,79029.0,79014.0,0.3608]
[1743966640987,0.1946,79029.0,79023.0,0.3608]
[1743966641186,0.1805,79028.0,79023.0,0.33093]
[1743966641386,0.36132351,79024.0,79023.0,0.00176]
[1743966641590,0.36132351,79024.0,79023.0,0.12656545]
[1743966641892,0.00052351,79024.0,79023.0,0.12656545]
[1743966642087,0.00052351,79024.0,79023.0,0.00176]
[1743966642287,0.00052351,79024.0,79023.0,0.00185218]
[1743966642489,0.1946,79040.0,79023.0,0.00385218]
[1743966642684,0.1946,79037.0,79027.0,0.35546274]
[1743966642886,0.3608,79041.0,79027.0,0.35734274]
[1743966643090,0.3608,79041.0,79029.0,0.3608]
[1743966643292,0.1816132,79039.0,79030.0,0.1853]
[1743966643495,0.00015529,79035.0,79030.0,0.18706]
[1743966643694,0.3608,79031.0,79030.0,0.00176]
[1743966644087,0.76568518,79031.0,79023.0,0.00209218]
[1743966644290,0.5424132,79024.0,79016.0,0.00018991]
[1743966644592,0.3608,79017.0,79016.0,0.00018991]
[1743966644803,0.3608,79017.0,78990.0,0.35546274]
[1743966644990,0.3608,79006.0,78999.0,0.00187292]
[1743966645188,0.3699,79005.0,78999.0,0.00063292]
[1743966645390,0.3699,79005.0,79000.0,0.12671031]
[1743966645588,0.1885,79005.0,79001.0,0.1854]
[1743966645788,0.1885,79005.0,79001.0,0.37542]
[1743966645983,0.3608,79006.0,79001.0,0.37542]
[1743966646183,0.0001895,79011.0,79002.0,0.12657747]
[1743966646392,0.001,79005.0,79002.0,0.12781747]
[1743966647200,0.1814,79004.0,79002.0,0.12781747]
[1743966647395,0.183,79003.0,79002.0,0.12657747]
[1743966648192,0.183,79003.0,79002.0,0.13257747]
[1743966649097,0.1816132,79000.0,78995.0,0.00018979]
[1743966649298,0.25488518,78995.0,78976.0,0.1953]
[1743966649498,0.3608,78979.0,78976.0,0.1953]
[1743966649802,0.1813,78978.0,78977.0,0.12657827]
[1743966650001,0.1813,78978.0,78977.0,0.12793099]
[1743966650204,0.181,78994.0,78977.0,0.63873099]
[1743966650503,0.00018991,78985.0,78984.0,0.35546274]
[1743966650797,0.36098991,78985.0,78984.0,0.00132]
[1743966650990,0.001,78978.0,78977.0,0.00511272]
[1743966651194,0.001,78978.0,78977.0,0.19029272]
[1743966651394,0.00018991,78985.0,78977.0,0.46689983]
[1743966651699,0.1813,78986.0,78977.0,0.31689983]
[1743966651902,0.1805,78985.0,78977.0,0.31689983]
[1743966652088,0.1805,78985.0,78977.0,0.13899983]
[1743966652293,0.1931,78984.0,78977.0,0.07445272]
[1743966652494,0.1931,78984.0,78977.0,0.07577272]
[1743966652696,0.1805,78983.0,78977.0,0.07577272]
[1743966653103,0.1931,78982.0,78977.0,0.07445272]
[1743966653297,0.1931,78982.0,78978.0,0.00015521]
[1743966653793,0.1805,78981.0,78978.0,0.00139521]
[1743966654000,0.1931,78982.0,78978.0,0.00015521]
[1743966654193,0.001,78984.0,78979.0,0.51111433]
[1743966654395,0.001,78982.0,78979.0,0.87191433]
[1743966654596,0.001,78982.0,78979.0,0.87315433]
[1743966654796,0.3608,79012.0,78979.0,1.02315433]
[1743966654992,0.3608,79019.0,78998.0,0.3608]
[1743966655197,0.3852,79023.0,79000.0,0.3608]
[1743966655493,0.1853,79023.0,79010.0,0.29753289]
[1743966655802,0.1853,79023.0,79022.0,0.3608]
[1743966656005,0.1853,79023.0,79022.0,0.36204]
[1743966656307,0.1999,79032.0,79022.0,0.48859584]
[1743966656507,0.1853,79031.0,79023.0,0.7305]
[1743966656709,0.1853,79031.0,79023.0,0.73174]
[1743966656904,0.1853,79031.0,79030.0,0.3608]
[1743966657099,0.3608,79045.0,79030.0,0.36204]
[1743966657404,0.3608,79078.0,79039.0,0.3608]
[1743966657606,0.1815,79064.0,79054.0,0.3608]
[1743966657801,0.1853,79063.0,79054.0,0.36204]
[1743966658009,0.1853,79063.0,79051.0,0.1975]
[1743966658200,0.3608,79057.0,79052.0,0.00014206]
[1743966658407,0.3608,79057.0,79055.0,0.0632239]
[1743966658603,0.3608,79057.0,79053.0,0.3836]
[1743966658907,0.1916,79056.0,79053.0,0.51009101]
[1743966659109,0.1916,79056.0,79055.0,0.3608]
[1743966659707,0.1916,79056.0,79055.0,0.48729421]
[1743966659909,0.1916,79056.0,79055.0,0.12649421]
[1743966660103,0.1916,79056.0,79055.0,0.12733421]
[1743966660405,0.63609838,79056.0,79055.0,0.00184]
[1743966660705,0.63401838,79056.0,79055.0,0.12833341]
[1743966661011,0.78901838,79056.0,79052.0,0.00014206]
[1743966661314,0.1816132,79053.0,79049.0,0.00018978]
[1743966661503,0.1816132,79039.0,79031.0,0.002]
[1743966661703,0.1816132,79032.0,79031.0,0.002]
[1743966662015,0.00064,79032.0,79031.0,0.002]
[1743966662200,0.00064,79032.0,79031.0,0.12862917]
[1743966662405,0.00064,79032.0,79031.0,0.12954917]
[1743966662605,0.43713838,79032.0,79031.0,0.12954917]
[1743966662805,0.43713838,79032.0,79031.0,0.12862917]
[1743966663110,0.58713838,79032.0,79031.0,0.12862917]
[1743966663413,0.96313838,79032.0,79024.0,0.00018978]
[1743966663710,0.64218288,79032.0,79031.0,1e-08]
[1743966663909,0.1816132,79025.0,79007.0,1.2754]
[1743966664121,0.1816132,79008.0,79007.0,0.00088]
[1743966664307,0.1822532,79008.0,79005.0,0.00015622]
[1743966664611,0.82669838,79007.0,78991.0,0.03386923]
[1743966664811,0.82669838,79007.0,78989.0,0.3909]
[1743966664812,0.1816132,78998.0,78993.0,0.00264]
[1743966665012,0.1816132,78996.0,78993.0,0.00264]
[1743966665207,0.1822532,78996.0,78993.0,0.002]
[1743966665402,0.1816132,78993.0,78985.0,0.0001412]
[1743966665604,0.3608,78986.0,78985.0,0.0001412]
[1743966665804,0.5430532,78986.0,78985.0,0.0001412]
[1743966666010,0.00064,78986.0,78985.0,0.12672347]
[1743966666207,0.3608,79004.0,78985.0,0.27736347]
[1743966666406,0.61648518,79004.0,78994.0,0.35546274]
[1743966666602,0.3608,78997.0,78995.0,0.1882]
[1743966666902,0.1816132,78995.0,78987.0,0.00018991]
[1743966667103,0.3608,78990.0,78987.0,0.00018991]
[1743966667404,0.3608,78988.0,78987.0,0.00098991]
[1743966667598,0.3608,78988.0,78981.0,0.1892]
[1743966667599,0.36148,78988.0,78981.0,0.1892]
[1743966667911,0.001,78997.0,78987.0,0.12658868]
[1743966668099,0.001,78997.0,78990.0,0.3608]
[1743966668407,0.001,79004.0,78996.0,0.002]
[1743966668609,0.001,79004.0,79003.0,0.3608]
[1743966668802,0.00172,79004.0,79003.0,0.36144]
[1743966669003,0.00072,79004.0,79003.0,0.48804711]
[1743966669417,0.00072,79004.0,79003.0,0.12724711]
[1743966670014,0.1837,79019.0,79003.0,0.12724711]
[1743966670015,0.3608,79047.0,79008.0,0.1]
[1743966670217,1e-08,79024.0,79023.0,0.3608]
[1743966670512,1e-08,79024.0,79023.0,0.29831209]
[1743966670702,0.1837,79044.0,79023.0,0.32760385]
[1743966670902,0.1816132,79042.0,79034.0,0.35546274]
[1743966671111,0.00076,79042.0,79041.0,0.3608]
[1743966671302,0.00014441,79048.0,79041.0,0.3616]
[1743966671506,0.3608,79074.0,79044.0,0.3608]
[1743966671812,0.1837,79073.0,79059.0,0.3608]
[1743966672015,0.1831,79073.0,79060.0,0.3731]
[1743966672309,0.1,79100.0,79072.0,0.3608]
[1743966672499,0.25528518,79096.0,79086.0,0.35546274]
[1743966672705,0.00176,79096.0,79095.0,0.3608]
[1743966673002,0.00013402,79102.0,79095.0,0.3608]
[1743966673003,0.3608,79136.0,79095.0,0.39116126]
[1743966673204,0.1816132,79106.0,79104.0,0.002]
[1743966673400,0.1943,79127.0,79107.0,0.3608]
[1743966673600,0.00128,79127.0,79122.0,0.29755209]
[1743966673800,0.00128,79127.0,79123.0,0.1908]
[1743966674013,0.00128,79127.0,79124.0,0.00016259]
[1743966674213,0.00128,79127.0,79124.0,0.00144259]
[1743966674414,0.00018905,79133.0,79125.0,0.1263823]
[1743966674612,0.1943,79153.0,79131.0,0.3608]
[1743966674802,0.00128,79153.0,79143.0,0.35546274]
[1743966675008,0.25488518,79152.0,79144.0,0.3608]
[1743966675208,0.3608,79146.0,79144.0,0.12762558]
[1743966675403,0.1951,79145.0,79144.0,0.12634558]
[1743966675605,0.81078518,79145.0,79135.0,0.002]
[1743966675913,0.3608,79136.0,79135.0,0.002]
[1743966676320,0.76568518,79136.0,79135.0,0.002]
[1743966676519,0.76568518,79136.0,79135.0,0.12835835]
[1743966676820,0.76568518,79136.0,79132.0,0.00018953]
[1743966677018,0.3608,79133.0,79100.0,0.35546274]
[1743966677213,0.3608,79125.0,79108.0,0.3608]
[1743966677520,0.3608,79125.0,79107.0,0.00063205]
[1743966677814,0.3608,79114.0,79107.0,0.00063205]
[1743966678117,0.3608,79114.0,79108.0,0.12636793]
[1743966678118,0.3608,79110.0,79108.0,0.12636793]
[1743966678319,0.1951,79109.0,79108.0,0.12764793]
[1743966678507,0.44998518,79109.0,79108.0,0.12636793]
[1743966678712,0.3608,79114.0,79108.0,0.12636793]
[1743966679020,0.00018913,79118.0,79112.0,0.3608]
[1743966679218,0.1981,79135.0,79124.0,0.006]
[1743966679514,0.25488518,79135.0,79125.0,0.1969]
[1743966679708,0.3608,79131.0,79125.0,0.26133676]
[1743966679907,0.1981,79134.0,79125.0,0.12768467]
[1743966680107,0.25488518,79133.0,79125.0,0.12768467]
[1743966680309,0.3608,79132.0,79125.0,0.12768467]
[1743966680511,0.81378518,79132.0,79125.0,0.12768467]
[1743966680717,0.25488518,79131.0,79125.0,0.12768467]
[1743966681219,0.45298518,79130.0,79125.0,0.12768467]
[1743966681419,0.1981,79130.0,79125.0,0.12768467]
[1743966681612,0.25488518,79129.0,79125.0,0.12768467]
[1743966682013,0.25488518,79128.0,79125.0,0.12768467]
[1743966682214,0.25488518,79129.0,79125.0,0.12640467]
[1743966682418,0.001,79130.0,79125.0,0.49320467]
[1743966682614,0.001,79130.0,79126.0,0.13095209]
[1743966682811,0.001,79130.0,79126.0,0.33207209]
[1743966683014,0.3608,79132.0,79126.0,0.4584512]
[1743966683015,0.001,79129.0,79126.0,0.4584512]
[1743966683323,0.001,79129.0,79126.0,0.32749911]
[1743966683512,0.3608,79132.0,79126.0,0.12769911]
[1743966683513,0.25488518,79128.0,79126.0,0.12769911]
[1743966683720,0.001,79130.0,79126.0,0.12769911]
[1743966683915,0.002,79130.0,79126.0,0.13069911]
[1743966684132,0.25488518,79129.0,79126.0,0.12937911]
[1743966684430,0.1855,79128.0,79126.0,0.13073911]
[1743966684719,0.44038518,79128.0,79126.0,0.12937911]
[1743966684923,0.25488518,79127.0,79126.0,0.12937911]
[1743966685313,0.25488518,79127.0,79126.0,0.12637911]
[1743966685522,0.25488518,79127.0,79126.0,0.13237911]
[1743966685713,0.25488518,79126.0,79110.0,0.71626274]
[1743966685913,0.1888,79126.0,79111.0,0.1873]
[1743966686113,0.25488518,79126.0,79121.0,0.3608]
[1743966686319,0.25488518,79126.0,79122.0,0.3806]
[1743966686515,0.25488518,79125.0,79122.0,0.00132]
[1743966686719,0.001,79127.0,79122.0,0.00132]
[1743966686922,0.001,79127.0,79126.0,0.006]
[1743966687126,0.001,79127.0,79126.0,0.00728]
[1743966687422,0.03159,79133.0,79126.0,0.00728]
[1743966687623,0.25488518,79132.0,79126.0,0.1336631]
[1743966687815,0.44338518,79132.0,79126.0,0.1336631]
[1743966688015,0.25488518,79131.0,79126.0,0.1323831]
[1743966688516,0.44338518,79130.0,79126.0,0.13027861]
[1743966688817,0.1885,79130.0,79126.0,0.06441519]
[1743966689019,0.25488518,79129.0,79126.0,0.06441519]
[1743966689330,0.3608,79127.0,79126.0,0.06441519]
[1743966689510,0.61568518,79127.0,79108.0,0.1895]
[1743966689716,0.3608,79117.0,79108.0,0.1895]
[1743966689915,0.44338518,79126.0,79110.0,0.3608]
[1743966690118,0.25488518,79125.0,79116.0,0.48338978]
[1743966690321,0.002,79130.0,79119.0,0.3608]
[1743966690520,0.25488518,79129.0,79119.0,0.3608]
[1743966690723,0.25488518,79129.0,79119.0,0.36208]
[1743966690918,0.25488518,79128.0,79119.0,0.36208]
[1743966691124,0.25488518,79129.0,79120.0,0.12639588]
[1743966691323,0.25988518,79129.0,79120.0,0.12767588]
[1743966691715,0.25988518,79129.0,79120.0,0.06442797]
[1743966691915,0.43938518,79128.0,79120.0,0.06442797]
[1743966692118,0.44138518,79128.0,79120.0,0.06442797]
[1743966692422,0.002,79128.0,79120.0,0.06442797]
[1743966692818,0.003,79129.0,79127.0,0.3608]
[1743966693013,0.3717,79155.0,79128.0,0.3751]
[1743966693323,0.1845,79143.0,79140.0,0.3608]
[1743966693519,0.1845,79143.0,79141.0,0.3858]
[1743966693724,0.25488518,79142.0,79141.0,0.38708]
[1743966694021,0.3608,79152.0,79142.0,0.12637751]
[1743966694221,0.3608,79163.0,79143.0,0.3858]
[1743966694425,0.1845,79162.0,79155.0,0.3608]
[1743966694625,0.3608,79171.0,79156.0,0.3858]
[1743966694828,0.3608,79171.0,79156.0,0.32383209]
[1743966695017,0.1845,79177.0,79156.0,0.32383209]
[1743966695222,0.00013575,79185.0,79167.0,0.3608]
[1743966695419,0.00013575,79185.0,79175.0,0.3608]
[1743966695620,0.00013575,79185.0,79184.0,0.3608]
[1743966695826,0.00013575,79185.0,79184.0,0.36208]
[1743966696330,0.002,79199.0,79184.0,0.36208]
[1743966696533,0.002,79199.0,79195.0,0.32924]
[1743966696719,0.002,79199.0,79196.0,0.1999]
[1743966697031,0.25488518,79198.0,79196.0,0.00128]
[1743966697324,0.25688518,79199.0,79197.0,0.12628734]
[1743966697530,0.002,79199.0,79198.0,0.00010825]
[1743966697726,0.00013482,79201.0,79198.0,0.00138825]
[1743966698033,0.00013482,79201.0,79198.0,0.32014034]
[1743966698325,0.3771,79216.0,79207.0,0.00132233]
[1743966698529,0.44308518,79216.0,79210.0,0.3608]
[1743966698733,0.25488518,79216.0,79210.0,0.36168]